[Event "Rapid della Domenica"]
[Site "Chess.com"]
[Date "2020.06.14"]
[Round "1"]
[White "riccardocanossa"]
[Black "mr6701"]
[Result "0-1"]
[WhiteElo "1452"]
[BlackElo "1860"]
[TimeControl "720+3"]
[EndTime "6:14:47 PDT"]
[Termination "mr6701 ha vinto per abbandono"]

1. d4 {[%clk 0:11:59.7]} 1... d5 {[%clk 0:12:01.2]} 2. c4 {[%clk 0:12:01.7]}
2... e6 {[%clk 0:12:03.5]} 3. Nc3 {[%clk 0:12:01.9]} 3... Nf6 {[%clk 0:12:05.6]}
4. Nf3 {[%clk 0:12:00.3]} 4... Be7 {[%clk 0:12:07]} 5. Bg5 {[%clk 0:12:00.8]}
5... h6 {[%clk 0:12:08.6]} 6. Bh4 {[%clk 0:12:01.1]} 6... O-O {[%clk 0:12:10.7]}
7. e3 {[%clk 0:12:01]} 7... b6 {[%clk 0:12:12.9]} 8. Be2 {[%clk 0:12:01.5]} 8...
Bb7 {[%clk 0:12:15.1]} 9. O-O {[%clk 0:12:01.1]} 9... Nbd7 {[%clk 0:12:17]} 10.
Rc1 {[%clk 0:11:56.9]} 10... c5 {[%clk 0:12:18.9]} 11. cxd5 {[%clk 0:11:52.2]}
11... Nxd5 {[%clk 0:12:20.1]} 12. Bxe7 {[%clk 0:11:49.3]} 12... Qxe7 {[%clk
0:12:18.1]} 13. Nxd5 {[%clk 0:11:50.6]} 13... Bxd5 {[%clk 0:12:20.1]} 14. dxc5
{[%clk 0:11:48.2]} 14... Nxc5 {[%clk 0:12:22.1]} 15. a3 {[%clk 0:11:48.9]} 15...
Rad8 {[%clk 0:12:22.7]} 16. Qc2 {[%clk 0:11:45.3]} 16... Rc8 {[%clk 0:11:51.1]}
17. Rcd1 {[%clk 0:11:06.6]} 17... Bb3 {[%clk 0:11:49.2]} 18. Qc1 {[%clk
0:10:43.2]} 18... Bxd1 {[%clk 0:11:50.4]} 19. Rxd1 {[%clk 0:10:43.2]} 19... Na4
{[%clk 0:11:24.1]} 20. Qb1 {[%clk 0:10:34.5]} 20... Qf6 {[%clk 0:11:25.3]} 21.
Nd4 {[%clk 0:09:58.9]} 21... Rfd8 {[%clk 0:11:10.6]} 22. Ba6 {[%clk 0:09:22.4]}
22... Rc5 {[%clk 0:10:48.7]} 23. Bb5 {[%clk 0:08:53.1]} 23... e5 {[%clk
0:10:04.9]} 24. Bxa4 {[%clk 0:08:37.1]} 24... exd4 {[%clk 0:10:06.7]} 25. exd4
{[%clk 0:08:36.4]} 25... Rxd4 {[%clk 0:09:57.5]} 26. Rxd4 {[%clk 0:08:13.5]}
26... Qxd4 {[%clk 0:09:58.6]} 27. b4 {[%clk 0:08:08.8]} 27... Re5 {[%clk
0:09:22.4]} 28. h3 {[%clk 0:07:59.2]} 28... Re2 {[%clk 0:09:15.4]} 29. Qf5
{[%clk 0:07:36.4]} 29... g6 {[%clk 0:08:50.3]} 30. Qf3 {[%clk 0:07:13.3]} 30...
Qe4 {[%clk 0:08:46.8]} 31. Qg3 {[%clk 0:06:23]} 31... Re1+ {[%clk 0:08:38]} 32.
Kh2 {[%clk 0:06:14.3]} 32... Qe5 {[%clk 0:08:39.4]} 33. Qxe5 {[%clk 0:06:07.6]}
33... Rxe5 {[%clk 0:08:40.3]} 34. Kg3 {[%clk 0:05:56.5]} 34... Rd5 {[%clk
0:08:27.4]} 35. Kf4 {[%clk 0:05:21.3]} 35... Rd3 {[%clk 0:08:20.9]} 0-1

[Event "Rapid della Domenica"]
[Site "Chess.com"]
[Date "2020.06.14"]
[Round "1"]
[White "SanSecondoPR"]
[Black "sergiodone"]
[Result "0-1"]
[WhiteElo "1340"]
[BlackElo "1505"]
[TimeControl "720+3"]
[EndTime "6:18:55 PDT"]
[Termination "sergiodone ha vinto per abbandono"]

1. e4 {[%clk 0:12:01.2]} 1... g5 {[%clk 0:11:55.1]} 2. Nc3 {[%clk 0:11:56.3]}
2... c5 {[%clk 0:11:49.2]} 3. Bc4 {[%clk 0:11:51.5]} 3... e6 {[%clk 0:11:49.6]}
4. b3 {[%clk 0:11:31.9]} 4... Bg7 {[%clk 0:11:49.5]} 5. Bb2 {[%clk 0:11:31.9]}
5... Nc6 {[%clk 0:11:50.1]} 6. Rb1 {[%clk 0:11:08.5]} 6... a6 {[%clk 0:11:45]}
7. Nge2 {[%clk 0:10:33]} 7... b5 {[%clk 0:11:44.7]} 8. Bd3 {[%clk 0:10:28.2]}
8... h6 {[%clk 0:11:40.7]} 9. O-O {[%clk 0:10:02.3]} 9... Bb7 {[%clk 0:11:41.7]}
10. a4 {[%clk 0:09:52.6]} 10... b4 {[%clk 0:11:30.8]} 11. Na2 {[%clk 0:09:43.9]}
11... Bxb2 {[%clk 0:11:32]} 12. Rxb2 {[%clk 0:09:42.4]} 12... Qf6 {[%clk
0:11:31.5]} 13. c3 {[%clk 0:09:34.2]} 13... Nge7 {[%clk 0:11:27.8]} 14. Rc2
{[%clk 0:09:27.3]} 14... h5 {[%clk 0:11:14.8]} 15. f4 {[%clk 0:08:59.6]} 15...
g4 {[%clk 0:11:12.7]} 16. e5 {[%clk 0:08:43.7]} 16... Qg7 {[%clk 0:11:12.4]} 17.
Be4 {[%clk 0:08:28.1]} 17... Rb8 {[%clk 0:11:05]} 18. d4 {[%clk 0:07:45.2]}
18... bxc3 {[%clk 0:10:43.8]} 19. Naxc3 {[%clk 0:07:21.2]} 19... cxd4 {[%clk
0:10:43.3]} 20. Nxd4 {[%clk 0:07:10]} 20... Nb4 {[%clk 0:10:02.4]} 21. Re2
{[%clk 0:06:39.3]} 21... Ned5 {[%clk 0:09:59.8]} 22. Nxd5 {[%clk 0:05:47.8]}
22... Nxd5 {[%clk 0:09:59.5]} 23. Bxd5 {[%clk 0:05:22.5]} 23... Bxd5 {[%clk
0:09:59.5]} 24. f5 {[%clk 0:04:53.1]} 24... Qg5 {[%clk 0:09:50.6]} 25. fxe6
{[%clk 0:04:39.2]} 25... dxe6 {[%clk 0:09:45.6]} 26. Qd2 {[%clk 0:03:30.2]}
26... Rg8 {[%clk 0:09:31.2]} 27. Qxg5 {[%clk 0:03:29.6]} 27... Rxg5 {[%clk
0:09:31.7]} 28. Re3 {[%clk 0:03:26.1]} 28... h4 {[%clk 0:09:30.7]} 29. Rf6
{[%clk 0:03:14.1]} 29... Ke7 {[%clk 0:09:30.4]} 30. Rh6 {[%clk 0:03:14]} 30...
Rb4 {[%clk 0:09:30.1]} 31. Rd3 {[%clk 0:03:02]} 31... h3 {[%clk 0:09:16.5]} 32.
g3 {[%clk 0:02:53.2]} 32... Rxe5 {[%clk 0:09:15.7]} 33. Kf2 {[%clk 0:02:41.8]}
33... Re4 {[%clk 0:09:10.3]} 34. Nc2 {[%clk 0:02:32.6]} 34... Rxb3 {[%clk
0:09:03.3]} 35. Rxb3 {[%clk 0:02:26.2]} 35... Bxb3 {[%clk 0:09:03.3]} 36. Ne3
{[%clk 0:02:21.1]} 36... f5 {[%clk 0:08:58.7]} 37. Rh7+ {[%clk 0:02:16.3]} 37...
Kf8 {[%clk 0:08:52.3]} 38. Rb7 {[%clk 0:02:13.9]} 38... Bxa4 {[%clk 0:08:51]}
39. Rb6 {[%clk 0:02:06.7]} 39... Bb5 {[%clk 0:08:51.6]} 40. Rb8+ {[%clk
0:01:59.3]} 40... Ke7 {[%clk 0:08:52.6]} 41. Rb7+ {[%clk 0:01:57.2]} 41... Kd6
{[%clk 0:08:49.6]} 42. Rb6+ {[%clk 0:01:54.3]} 42... Kc7 {[%clk 0:08:49.2]} 43.
Nd5+ {[%clk 0:01:34.5]} 43... exd5 {[%clk 0:08:47.8]} 44. Rf6 {[%clk 0:01:32.4]}
44... Re2+ {[%clk 0:08:45]} 45. Kg1 {[%clk 0:01:29.2]} 45... Rg2+ {[%clk
0:08:45.2]} 46. Kh1 {[%clk 0:01:27.2]} 46... Bd3 {[%clk 0:08:46.3]} 0-1

[Event "Rapid della Domenica"]
[Site "Chess.com"]
[Date "2020.06.14"]
[Round "1"]
[White "pedrak"]
[Black "sirmale49"]
[Result "1-0"]
[WhiteElo "1714"]
[BlackElo "1388"]
[TimeControl "720+3"]
[EndTime "6:19:07 PDT"]
[Termination "pedrak ha vinto per abbandono"]

1. d4 {[%clk 0:12:00.1]} 1... d5 {[%clk 0:11:55.1]} 2. Nf3 {[%clk 0:11:59.2]}
2... Nf6 {[%clk 0:11:54]} 3. e3 {[%clk 0:11:54.1]} 3... Bg4 {[%clk 0:11:55.3]}
4. c4 {[%clk 0:11:54.7]} 4... e6 {[%clk 0:11:43]} 5. cxd5 {[%clk 0:11:54.1]}
5... Nxd5 {[%clk 0:11:42.1]} 6. Qb3 {[%clk 0:11:50.5]} 6... Bb4+ {[%clk
0:10:49.5]} 7. Bd2 {[%clk 0:11:49.5]} 7... Bxd2+ {[%clk 0:10:49.2]} 8. Nbxd2
{[%clk 0:11:50]} 8... Bxf3 {[%clk 0:10:38.4]} 9. Nxf3 {[%clk 0:11:40.2]} 9...
Nb6 {[%clk 0:10:32.3]} 10. Bd3 {[%clk 0:11:38.3]} 10... O-O {[%clk 0:10:30.9]}
11. O-O {[%clk 0:11:38.8]} 11... Nc6 {[%clk 0:10:25.8]} 12. Rac1 {[%clk
0:11:34.5]} 12... Qd5 {[%clk 0:09:56.5]} 13. Qxd5 {[%clk 0:11:11.1]} 13... Nxd5
{[%clk 0:09:46.4]} 14. a3 {[%clk 0:11:12]} 14... Rfe8 {[%clk 0:09:31.1]} 15. Bb5
{[%clk 0:11:08.9]} 15... a6 {[%clk 0:09:03.6]} 16. Bxc6 {[%clk 0:11:09]} 16...
bxc6 {[%clk 0:09:05]} 17. Rxc6 {[%clk 0:11:10]} 17... Ra7 {[%clk 0:09:01.7]} 18.
Rfc1 {[%clk 0:11:09.5]} 18... Rc8 {[%clk 0:08:44.3]} 19. Ne5 {[%clk 0:10:41.9]}
19... Kf8 {[%clk 0:08:33.1]} 20. Nd7+ {[%clk 0:10:09.4]} 20... Ke7 {[%clk
0:08:27.6]} 21. Nc5 {[%clk 0:10:10.3]} 21... Kd8 {[%clk 0:08:01.6]} 22. Nxa6
{[%clk 0:09:50]} 22... Ne7 {[%clk 0:07:55.8]} 23. Nb4 {[%clk 0:09:50.5]} 23...
Rb7 {[%clk 0:07:39.2]} 24. R6c2 {[%clk 0:09:44.5]} 24... Nd5 {[%clk 0:07:23.3]}
25. Nxd5 {[%clk 0:09:44]} 25... exd5 {[%clk 0:07:23.5]} 26. Kf1 {[%clk
0:09:37.1]} 26... Rb5 {[%clk 0:06:52.6]} 27. b4 {[%clk 0:09:31.9]} 27... Kd7
{[%clk 0:06:50.2]} 28. Rc5 {[%clk 0:09:27.2]} 28... Rxc5 {[%clk 0:06:43.3]} 29.
dxc5 {[%clk 0:09:28]} 29... Kc6 {[%clk 0:06:41.9]} 30. Ke2 {[%clk 0:09:19.8]}
30... Ra8 {[%clk 0:06:33.7]} 31. Rc3 {[%clk 0:09:20.3]} 31... f5 {[%clk
0:06:12.8]} 32. Kd3 {[%clk 0:09:19.8]} 32... Re8 {[%clk 0:06:03.7]} 33. f3
{[%clk 0:09:08.3]} 33... h5 {[%clk 0:06:01.8]} 34. a4 {[%clk 0:09:06.1]} 34...
g5 {[%clk 0:06:02.9]} 35. b5+ {[%clk 0:09:06.6]} 35... Kb7 {[%clk 0:06:00.6]}
36. Kd4 {[%clk 0:09:07.4]} 36... c6 {[%clk 0:05:58.5]} 37. bxc6+ {[%clk
0:09:02.6]} 37... Kxc6 {[%clk 0:05:59.9]} 38. Rb3 {[%clk 0:09:03.9]} 38... g4
{[%clk 0:05:30.1]} 39. Rb6+ {[%clk 0:09:02.4]} 39... Kc7 {[%clk 0:05:29]} 40. a5
{[%clk 0:08:59]} 40... gxf3 {[%clk 0:05:26.6]} 41. gxf3 {[%clk 0:08:59.7]} 41...
Rg8 {[%clk 0:04:41.9]} 42. Rh6 {[%clk 0:08:49.5]} 42... Rg2 {[%clk 0:04:27.3]}
43. Rxh5 {[%clk 0:08:49.7]} 43... Rd2+ {[%clk 0:04:26.6]} 44. Ke5 {[%clk
0:08:46.5]} 44... Kc6 {[%clk 0:04:23.9]} 45. Kxf5 {[%clk 0:08:33]} 45... Kxc5
{[%clk 0:04:22.9]} 46. a6 {[%clk 0:08:34.3]} 46... Kb6 {[%clk 0:04:23.7]} 47.
Rh6+ {[%clk 0:08:35.3]} 47... Ka7 {[%clk 0:04:24.8]} 48. Ke5 {[%clk 0:08:35.9]}
48... Re2 {[%clk 0:04:17.2]} 49. Kxd5 {[%clk 0:08:29.8]} 49... Rxe3 {[%clk
0:04:18.5]} 50. f4 {[%clk 0:08:31.2]} 50... Rf3 {[%clk 0:04:15.9]} 51. Ke4
{[%clk 0:08:31.2]} 51... Rf1 {[%clk 0:04:16.9]} 52. f5 {[%clk 0:08:32.3]} 52...
Re1+ {[%clk 0:04:18.1]} 53. Kf4 {[%clk 0:08:33.4]} 53... Rf1+ {[%clk 0:04:19.7]}
54. Ke5 {[%clk 0:08:32.5]} 54... Re1+ {[%clk 0:04:21.3]} 55. Kd4 {[%clk
0:08:31]} 55... Rd1+ {[%clk 0:04:18.8]} 56. Ke3 {[%clk 0:08:30.4]} 56... Rf1
{[%clk 0:04:11.4]} 57. Ke4 {[%clk 0:08:23.8]} 57... Re1+ {[%clk 0:04:10.5]} 58.
Kd5 {[%clk 0:08:25.5]} 58... Rf1 {[%clk 0:04:09.7]} 59. Ke6 {[%clk 0:08:26.1]}
59... Kxa6 {[%clk 0:04:07.7]} 60. f6 {[%clk 0:08:27.5]} 60... Re1+ {[%clk
0:04:03.3]} 61. Kf7 {[%clk 0:08:29]} 61... Kb6 {[%clk 0:04:04.1]} 62. Kg7 {[%clk
0:08:29.3]} 62... Rg1+ {[%clk 0:04:03.8]} 63. Rg6 {[%clk 0:08:31]} 63... Rc1
{[%clk 0:03:37.5]} 64. f7+ {[%clk 0:08:31.6]} 64... Kb5 {[%clk 0:03:30.2]} 65.
f8=Q {[%clk 0:08:32.8]} 1-0

[Event "Rapid della Domenica"]
[Site "Chess.com"]
[Date "2020.06.14"]
[Round "1"]
[White "Mrtre7"]
[Black "fausto2p"]
[Result "1-0"]
[WhiteElo "1483"]
[BlackElo "1249"]
[TimeControl "720+3"]
[EndTime "6:23:54 PDT"]
[Termination "Mrtre7 ha vinto per tempo"]

1. d4 {[%clk 0:12:01.7]} 1... d5 {[%clk 0:12:00.5]} 2. c4 {[%clk 0:12:03.1]}
2... c6 {[%clk 0:12:00.4]} 3. Nc3 {[%clk 0:12:03.9]} 3... Nf6 {[%clk 0:12:00.5]}
4. Nf3 {[%clk 0:12:03.4]} 4... dxc4 {[%clk 0:12:00.9]} 5. a4 {[%clk 0:12:03.1]}
5... Bf5 {[%clk 0:11:44.9]} 6. e3 {[%clk 0:11:50.8]} 6... e6 {[%clk 0:11:44.9]}
7. Bxc4 {[%clk 0:11:51]} 7... Bb4 {[%clk 0:11:33.3]} 8. O-O {[%clk 0:11:49.9]}
8... O-O {[%clk 0:11:13.9]} 9. Qb3 {[%clk 0:10:16.7]} 9... a5 {[%clk 0:10:06.3]}
10. Ne2 {[%clk 0:09:36.1]} 10... Nbd7 {[%clk 0:09:01.3]} 11. Ng3 {[%clk
0:09:35.4]} 11... Bg4 {[%clk 0:08:37.5]} 12. e4 {[%clk 0:08:32.9]} 12... Bxf3
{[%clk 0:08:30.6]} 13. Qxf3 {[%clk 0:08:32.5]} 13... Nb6 {[%clk 0:06:52.1]} 14.
Bb3 {[%clk 0:08:17.9]} 14... c5 {[%clk 0:05:11]} 15. dxc5 {[%clk 0:07:41.6]}
15... Bxc5 {[%clk 0:05:09]} 16. Bg5 {[%clk 0:07:42.3]} 16... Be7 {[%clk
0:03:55.9]} 17. Rfd1 {[%clk 0:07:22.4]} 17... Qc7 {[%clk 0:03:31.1]} 18. Rac1
{[%clk 0:07:18]} 18... Qe5 {[%clk 0:03:30.9]} 19. Be3 {[%clk 0:06:11.5]} 19...
Nc8 {[%clk 0:02:28.6]} 20. Bd4 {[%clk 0:06:08.5]} 20... Qg5 {[%clk 0:02:09.6]}
21. Rc7 {[%clk 0:05:41.9]} 21... b6 {[%clk 0:01:23.9]} 22. e5 {[%clk 0:04:39.7]}
22... Nd5 {[%clk 0:01:15.1]} 23. Bxd5 {[%clk 0:04:34]} 23... exd5 {[%clk
0:01:08.9]} 24. Qxd5 {[%clk 0:04:25.4]} 24... Rd8 {[%clk 0:01:02.4]} 25. Qxa8
{[%clk 0:04:19.5]} 25... Bc5 {[%clk 0:00:48]} 26. Rxc8 {[%clk 0:04:10.7]} 26...
Rxc8 {[%clk 0:00:16.9]} 27. Qxc8+ {[%clk 0:04:09.5]} 27... Bf8 {[%clk
0:00:17.1]} 28. Bxb6 {[%clk 0:03:35.9]} 28... Qxe5 {[%clk 0:00:17.2]} 29. Bc5
{[%clk 0:03:29.8]} 1-0

[Event "Rapid della Domenica"]
[Site "Chess.com"]
[Date "2020.06.14"]
[Round "2"]
[White "mr6701"]
[Black "sergiodone"]
[Result "1-0"]
[WhiteElo "1864"]
[BlackElo "1503"]
[TimeControl "720+3"]
[EndTime "6:31:19 PDT"]
[Termination "mr6701 ha vinto per abbandono"]

1. e4 {[%clk 0:12:02.9]} 1... g5 {[%clk 0:11:57.5]} 2. d4 {[%clk 0:12:03.8]}
2... e6 {[%clk 0:11:58.3]} 3. Nc3 {[%clk 0:12:03.3]} 3... c5 {[%clk 0:11:55]} 4.
d5 {[%clk 0:11:59.8]} 4... e5 {[%clk 0:11:49.9]} 5. Nf3 {[%clk 0:12:01.2]} 5...
f6 {[%clk 0:11:32]} 6. d6 {[%clk 0:11:58.8]} 6... Qb6 {[%clk 0:11:10.1]} 7. Nb5
{[%clk 0:11:59.2]} 7... Na6 {[%clk 0:11:06.4]} 8. Nxe5 {[%clk 0:11:49.1]} 8...
fxe5 {[%clk 0:10:59.8]} 9. Qh5+ {[%clk 0:11:50.6]} 9... Kd8 {[%clk 0:10:33.9]}
10. Bxg5+ {[%clk 0:11:52.1]} 10... Be7 {[%clk 0:10:21.4]} 11. Qf7 {[%clk
0:11:02.3]} 11... Qxd6 {[%clk 0:08:18.8]} 12. Nxd6 {[%clk 0:11:00]} 12... Kc7
{[%clk 0:08:20.6]} 13. Bxe7 {[%clk 0:10:56.3]} 13... Nxe7 {[%clk 0:08:13.6]} 14.
Qxe7 {[%clk 0:10:58]} 14... b6 {[%clk 0:08:00.8]} 15. Qxe5 {[%clk 0:10:58.2]}
1-0

[Event "Rapid della Domenica"]
[Site "Chess.com"]
[Date "2020.06.14"]
[Round "2"]
[White "sirmale49"]
[Black "SanSecondoPR"]
[Result "1-0"]
[WhiteElo "1395"]
[BlackElo "1333"]
[TimeControl "720+3"]
[EndTime "6:33:11 PDT"]
[Termination "sirmale49 ha vinto per abbandono"]

1. e4 {[%clk 0:12:02.9]} 1... e5 {[%clk 0:11:59.9]} 2. f4 {[%clk 0:12:04.4]}
2... d5 {[%clk 0:11:59.6]} 3. Nc3 {[%clk 0:11:45]} 3... d4 {[%clk 0:11:52.4]} 4.
Nce2 {[%clk 0:11:42.3]} 4... d3 {[%clk 0:11:41.7]} 5. cxd3 {[%clk 0:11:41.4]}
5... Qxd3 {[%clk 0:11:36.9]} 6. Nc3 {[%clk 0:11:33.6]} 6... Qd6 {[%clk
0:11:12.3]} 7. Nf3 {[%clk 0:11:18.6]} 7... exf4 {[%clk 0:11:07.7]} 8. Bc4 {[%clk
0:11:07.3]} 8... Bg4 {[%clk 0:11:01.5]} 9. O-O {[%clk 0:10:57.8]} 9... Qc5+
{[%clk 0:10:55.3]} 10. d4 {[%clk 0:10:21.3]} 10... Qxc4 {[%clk 0:10:54.3]} 11.
Qa4+ {[%clk 0:10:22.5]} 11... Qxa4 {[%clk 0:10:52.4]} 12. Nxa4 {[%clk 0:10:24]}
12... Bxf3 {[%clk 0:10:41.3]} 13. Rxf3 {[%clk 0:10:22.3]} 13... Nf6 {[%clk
0:10:24]} 14. Bxf4 {[%clk 0:10:13.4]} 14... Na6 {[%clk 0:10:12.1]} 15. a3 {[%clk
0:09:57.1]} 15... Bd6 {[%clk 0:10:01.9]} 16. e5 {[%clk 0:09:56]} 16... Nh5
{[%clk 0:09:27.5]} 17. exd6 {[%clk 0:09:49.7]} 17... Nxf4 {[%clk 0:09:22.9]} 18.
Rxf4 {[%clk 0:09:50.5]} 18... cxd6 {[%clk 0:09:21.4]} 19. Re1+ {[%clk
0:09:49.9]} 19... Kd7 {[%clk 0:09:13.9]} 20. Rxf7+ {[%clk 0:09:48.7]} 20... Kc6
{[%clk 0:09:11.8]} 21. Rxg7 {[%clk 0:09:46]} 21... Kd5 {[%clk 0:09:01.8]} 22.
Rxb7 {[%clk 0:09:39]} 22... Kxd4 {[%clk 0:08:59.8]} 23. Rd1+ {[%clk 0:09:38.3]}
23... Ke3 {[%clk 0:08:57]} 24. Re7+ {[%clk 0:09:36]} 24... Kf4 {[%clk
0:08:52.5]} 25. Rf1+ {[%clk 0:09:35.4]} 25... Kg5 {[%clk 0:08:52.8]} 26. Rg7+
{[%clk 0:09:35.1]} 26... Kh6 {[%clk 0:08:51.3]} 27. Rd7 {[%clk 0:09:32.2]} 27...
Nc5 {[%clk 0:08:42.9]} 28. Rxd6+ {[%clk 0:09:30.4]} 1-0

[Event "Rapid della Domenica"]
[Site "Chess.com"]
[Date "2020.06.14"]
[Round "2"]
[White "ottovolante"]
[Black "pedrak"]
[Result "0-1"]
[WhiteElo "999"]
[BlackElo "1714"]
[TimeControl "720+3"]
[EndTime "6:36:20 PDT"]
[Termination "pedrak ha vinto per abbandono"]

1. e4 {[%clk 0:12:02.9]} 1... e6 {[%clk 0:11:53.4]} 2. Nf3 {[%clk 0:11:59.3]}
2... d5 {[%clk 0:11:54.1]} 3. e5 {[%clk 0:12:00.6]} 3... c5 {[%clk 0:11:54.7]}
4. d4 {[%clk 0:12:00.3]} 4... cxd4 {[%clk 0:11:54.5]} 5. Bb5+ {[%clk 0:11:52.6]}
5... Bd7 {[%clk 0:11:54.3]} 6. Bxd7+ {[%clk 0:11:53.4]} 6... Qxd7 {[%clk
0:11:54.9]} 7. Nxd4 {[%clk 0:11:51.4]} 7... Nc6 {[%clk 0:11:55.8]} 8. Nxc6
{[%clk 0:11:51.8]} 8... bxc6 {[%clk 0:11:56.3]} 9. O-O {[%clk 0:11:47.6]} 9...
Ne7 {[%clk 0:11:55.6]} 10. Bg5 {[%clk 0:11:40.1]} 10... Ng6 {[%clk 0:11:54.3]}
11. Re1 {[%clk 0:11:33.6]} 11... Bc5 {[%clk 0:11:42.4]} 12. a3 {[%clk 0:11:23]}
12... O-O {[%clk 0:11:42.1]} 13. b4 {[%clk 0:11:10.7]} 13... Bb6 {[%clk
0:11:36]} 14. Nc3 {[%clk 0:10:38.4]} 14... Bc7 {[%clk 0:11:31.1]} 15. Na4 {[%clk
0:10:37.8]} 15... Bxe5 {[%clk 0:11:27.5]} 16. Nc5 {[%clk 0:10:39.4]} 16... Qc7
{[%clk 0:11:23.7]} 17. Rb1 {[%clk 0:10:40.8]} 17... Bxh2+ {[%clk 0:11:20.3]} 18.
Kf1 {[%clk 0:10:41.6]} 18... Bd6 {[%clk 0:11:16.9]} 19. g3 {[%clk 0:10:37]}
19... h6 {[%clk 0:11:09.4]} 20. Be3 {[%clk 0:10:32.2]} 20... e5 {[%clk
0:10:54.5]} 21. Na6 {[%clk 0:10:17.1]} 21... Qd7 {[%clk 0:10:47.3]} 22. Kg2
{[%clk 0:09:54.1]} 22... d4 {[%clk 0:10:39.4]} 23. Bd2 {[%clk 0:09:47.9]} 23...
f5 {[%clk 0:10:25.8]} 24. Nc5 {[%clk 0:09:49]} 24... Qe7 {[%clk 0:10:22.1]} 25.
Bf4 {[%clk 0:09:39.3]} 25... Bxc5 {[%clk 0:10:09.9]} 26. bxc5 {[%clk 0:09:36]}
26... Qxc5 {[%clk 0:10:10.7]} 27. Be3 {[%clk 0:09:03.4]} 27... dxe3 {[%clk
0:09:48.1]} 28. fxe3 {[%clk 0:09:02.1]} 28... Rad8 {[%clk 0:09:46.9]} 29. Qe2
{[%clk 0:09:03.6]} 29... Qd5+ {[%clk 0:09:39.3]} 30. Kg1 {[%clk 0:09:04.1]}
30... Qe4 {[%clk 0:09:39.8]} 31. Rb4 {[%clk 0:09:02.3]} 31... Qd5 {[%clk
0:09:38.2]} 32. c4 {[%clk 0:08:53.8]} 32... Qd3 {[%clk 0:09:32.5]} 33. Kf2
{[%clk 0:08:42.9]} 33... Qxa3 {[%clk 0:09:30]} 34. Rb7 {[%clk 0:08:42.1]} 34...
Rf7 {[%clk 0:09:24.2]} 35. Rxf7 {[%clk 0:08:38.8]} 35... Kxf7 {[%clk 0:09:25.4]}
36. g4 {[%clk 0:08:32.3]} 36... Qd3 {[%clk 0:09:00]} 37. gxf5 {[%clk 0:08:32]}
37... Qxf5+ {[%clk 0:09:00.8]} 38. Qf3 {[%clk 0:08:27.6]} 38... Qxf3+ {[%clk
0:09:01.6]} 39. Kxf3 {[%clk 0:08:29.3]} 39... Rd7 {[%clk 0:08:59.9]} 40. Ra1
{[%clk 0:08:28.9]} 40... Nh4+ {[%clk 0:08:59]} 41. Kg4 {[%clk 0:08:29]} 41... g5
{[%clk 0:08:59.2]} 42. Rf1+ {[%clk 0:08:26.2]} 42... Kg7 {[%clk 0:09:00.2]} 43.
c5 {[%clk 0:08:18.9]} 43... Rf7 {[%clk 0:08:52.8]} 44. Rd1 {[%clk 0:08:17.6]}
44... Ng2 {[%clk 0:08:51.8]} 45. Rd6 {[%clk 0:08:09.1]} 45... Nxe3+ {[%clk
0:08:51.8]} 46. Kg3 {[%clk 0:08:10.1]} 46... Nf5+ {[%clk 0:08:48.5]} 0-1

[Event "Rapid della Domenica"]
[Site "Chess.com"]
[Date "2020.06.14"]
[Round "2"]
[White "riccardocanossa"]
[Black "Mrtre7"]
[Result "1-0"]
[WhiteElo "1487"]
[BlackElo "1474"]
[TimeControl "720+3"]
[EndTime "6:44:26 PDT"]
[Termination "riccardocanossa ha vinto per scaccomatto"]

1. e4 {[%clk 0:12:02.9]} 1... c5 {[%clk 0:12:00.2]} 2. Nf3 {[%clk 0:11:59.2]}
2... g6 {[%clk 0:11:59.9]} 3. d4 {[%clk 0:11:58.6]} 3... cxd4 {[%clk 0:11:41.7]}
4. Nxd4 {[%clk 0:11:57.7]} 4... Bg7 {[%clk 0:11:43.3]} 5. Nc3 {[%clk 0:11:58]}
5... Nc6 {[%clk 0:11:44.9]} 6. Nf3 {[%clk 0:11:58.2]} 6... Nf6 {[%clk
0:11:36.7]} 7. Bd3 {[%clk 0:11:50.1]} 7... O-O {[%clk 0:11:37.4]} 8. O-O {[%clk
0:11:44.2]} 8... d5 {[%clk 0:11:32.6]} 9. exd5 {[%clk 0:11:33.1]} 9... Nxd5
{[%clk 0:11:33.6]} 10. Nxd5 {[%clk 0:10:42.2]} 10... Qxd5 {[%clk 0:11:33.8]} 11.
c3 {[%clk 0:10:32.8]} 11... Bg4 {[%clk 0:11:22.9]} 12. Be2 {[%clk 0:10:28.8]}
12... Qxd1 {[%clk 0:11:22]} 13. Rxd1 {[%clk 0:10:30.2]} 13... Rad8 {[%clk
0:11:20.3]} 14. Be3 {[%clk 0:10:22]} 14... Ne5 {[%clk 0:10:42.5]} 15. Rxd8
{[%clk 0:10:10.9]} 15... Rxd8 {[%clk 0:10:41.1]} 16. Nxe5 {[%clk 0:10:11]} 16...
Bxe2 {[%clk 0:10:36.4]} 17. Nf3 {[%clk 0:09:35.8]} 17... b6 {[%clk 0:10:37]} 18.
h3 {[%clk 0:09:18.2]} 18... Rd5 {[%clk 0:09:51.4]} 19. Nd4 {[%clk 0:09:00.9]}
19... Bd3 {[%clk 0:07:34.4]} 20. Rd1 {[%clk 0:08:32.1]} 20... Ba6 {[%clk
0:05:51.7]} 21. Rd2 {[%clk 0:07:42.9]} 21... Bb7 {[%clk 0:04:55.2]} 22. f3
{[%clk 0:07:34.1]} 22... e5 {[%clk 0:04:24]} 23. Nb3 {[%clk 0:07:29.6]} 23...
Rxd2 {[%clk 0:04:22.2]} 24. Bxd2 {[%clk 0:07:29.2]} 24... e4 {[%clk 0:04:23.6]}
25. fxe4 {[%clk 0:07:27.7]} 25... Bxe4 {[%clk 0:04:24.8]} 26. Kf2 {[%clk
0:07:23]} 26... f5 {[%clk 0:04:25.5]} 27. Bf4 {[%clk 0:06:52.2]} 27... Kf7
{[%clk 0:04:21.5]} 28. Ke3 {[%clk 0:06:48]} 28... Bxg2 {[%clk 0:04:15.3]} 29. h4
{[%clk 0:06:21.5]} 29... Ke6 {[%clk 0:04:04.3]} 30. Bb8 {[%clk 0:05:56.1]} 30...
a6 {[%clk 0:04:04.9]} 31. Ba7 {[%clk 0:05:55.6]} 31... b5 {[%clk 0:04:03.4]} 32.
Nc5+ {[%clk 0:05:55]} 32... Kd5 {[%clk 0:03:08.3]} 33. Nxa6 {[%clk 0:05:53.5]}
33... Bh6+ {[%clk 0:03:09.6]} 34. Kf2 {[%clk 0:05:49.9]} 34... Be4 {[%clk
0:03:10.9]} 35. Nb4+ {[%clk 0:05:41.9]} 35... Kc4 {[%clk 0:03:06.9]} 36. Bd4
{[%clk 0:05:34.2]} 36... Bf8 {[%clk 0:02:33.8]} 37. b3# {[%clk 0:05:27.7]} 1-0